fUST/lending_fUST_20240728
["ID","MTS","AMOUNT","RATE_DAILY","PERIOD"]
[333471187,1722163876395,-3000.0,0.0002102,2]
[333471188,1722163876406,-3000.0,0.0002103,2]
[333471189,1722163876417,-3000.0,0.0002104,2]
[333471190,1722163876432,-3000.0,0.0002105,2]
[333471191,1722163876443,-3000.0,0.0002106,2]
[333471192,1722163876455,-3000.0,0.0002107,2]
[333471193,1722163876467,-3000.0,0.0002108,2]
[333471194,1722163876476,-3000.0,0.0002109,2]
[333471195,1722163876486,-3000.0,0.000211,2]
[333471196,1722163876495,-3000.0,0.0002111,2]
[333471197,1722163876505,-3000.0,0.0002112,2]
[333471198,1722163876515,-3000.0,0.0002113,2]
[333471199,1722163876525,-3000.0,0.0002114,2]
[333471200,1722163876534,-3000.0,0.0002115,2]
[333471201,1722163876544,-3000.0,0.0002116,2]
[333471202,1722163876554,-3000.0,0.0002117,2]
[333471203,1722163876564,-3000.0,0.0002118,2]
[333471204,1722163876574,-3000.0,0.0002119,2]
[333471205,1722163876583,-3000.0,0.000212,2]
[333471206,1722163876593,-453.59290944,0.000212,4]
[333471207,1722163876603,-453.63817819,0.000212,4]
[333471208,1722163876612,-3000.0,0.0002121,2]
[333471209,1722163876622,-3000.0,0.0002122,2]
[333471210,1722163876632,-793.24052202,0.00021229,2]
[333471211,1722163876641,-3000.0,0.0002123,2]
[333471212,1722163876651,-3000.0,0.0002124,2]
[333471213,1722163876660,-3000.0,0.0002125,2]
[333471214,1722163876670,-3000.0,0.0002126,2]
[333471215,1722163876679,-3000.0,0.0002127,2]
[333471216,1722163876689,-3000.0,0.0002128,2]
[333471217,1722163876698,-3000.0,0.0002129,2]
[333471218,1722163876707,-3000.0,0.000213,2]
[333471219,1722163876718,-3000.0,0.0002131,2]
[333471220,1722163876728,-3000.0,0.0002132,2]
[333471221,1722163876739,-1895.74426501,0.00021325,2]
[333471222,1722163876748,-3000.0,0.0002133,2]
[333471223,1722163876758,-3000.0,0.0002134,2]
[333471224,1722163876768,-3000.0,0.0002135,2]
[333471225,1722163876778,-4971.37918027,0.00021361,2]
[333471226,1722163876787,-251.7196586,0.00021369,2]
[333471227,1722163876797,-3908.10423347,0.00021392,2]
[333471228,1722163876807,-2288.98425793,0.00021395,2]
[333471229,1722163876816,-453.59290944,0.000214,4]
[333471230,1722163876826,-453.63817819,0.000214,4]
[333471231,1722163876837,-3908.10423347,0.00021401,2]
[333471232,1722163876849,-158.70242337,0.00021437,2]
[333471233,1722163876861,-151.37167896,0.00021468,2]
[333471234,1722163876871,-251.7196586,0.00021542,2]
[333471235,1722163876881,-2288.98425793,0.00021572,2]
[333471236,1722163876892,-3908.10423347,0.00021579,2]
[333471237,1722163876902,-251.7196586,0.00021586,2]
[333471238,1722163876912,-3908.10423347,0.00021587,2]
[333471239,1722163876922,-154.28369464,0.00021592,2]
[333471240,1722163876933,-3908.10423347,0.00021598,2]
[333471241,1722163876944,-152.61249675,0.000216,2]
[333471242,1722163876956,-453.59290944,0.000216,4]
[333471243,1722163876966,-453.63817819,0.000216,4]
[333471244,1722163876976,-4971.37918027,0.00021609,2]
[333471245,1722163876986,-3908.10423347,0.00021611,2]
[333471246,1722163876996,-251.7196586,0.00021647,2]
[333471247,1722163877005,-151.37167896,0.00021651,2]
[333471248,1722163877016,-151.37167896,0.00021669,2]
[333471249,1722163877025,-251.7196586,0.00021674,2]
[333471250,1722163877036,-596.16339299,0.00021722,2]
[333471251,1722163877047,-1256.0,0.00021747,8]
[333471252,1722163877057,-251.7196586,0.00021773,2]
[333471253,1722163877069,-3381.19283819,0.00021783,2]
[333471254,1722163877078,-251.7196586,0.00021783,2]
[333471255,1722163877088,-3908.10423347,0.00021785,2]
[333471256,1722163877098,-453.59290944,0.000218,4]
[333471257,1722163877108,-453.63817819,0.000218,4]
[333471258,1722163877117,-261.3543789,0.00021802,2]
[333471259,1722163877127,-251.7196586,0.00021811,2]
[333471260,1722163877136,-151.37167896,0.00021815,2]
[333471261,1722163877146,-158.70242337,0.00021863,2]
[333471262,1722163877156,-251.7196586,0.00021873,2]
[333471263,1722163877166,-251.7196586,0.00021881,2]
[333471264,1722163877175,-154.28369464,0.00021888,2]
[333471265,1722163877184,-251.7196586,0.00021891,2]
[333471266,1722163877196,-1000.0,0.00021917,5]
[333471267,1722163877208,-1000.0,0.00021917,5]
[333471268,1722163877217,-1000.0,0.00021917,5]
[333471269,1722163877228,-1000.0,0.00021917,5]
[333471270,1722163877239,-769.04132144,0.00021917,5]
[333471271,1722163877311,-25132.9320909,0.00021918,2]
[333471272,1722163877321,-160.0,0.00021918,2]
[333471273,1722163877331,-160.0,0.00021918,2]
[333471274,1722163877341,-172.33484456,0.00021918,2]
[333471275,1722163877350,-4971.37918027,0.00021919,2]
[333471276,1722163877360,-3908.10423347,0.00021919,2]
[333471277,1722163877369,-154.28369464,0.00021944,2]
[333471278,1722163877378,-158.70242337,0.0002197,2]
[333471279,1722163877388,-4971.37918027,0.00021975,2]
[333471280,1722163877398,-505.0,0.00022,2]
[333471281,1722163877407,-2061.57011535,0.00022,2]
[333471282,1722163877416,-1000.0,0.00022,30]
[333471283,1722163877426,-160.49649706,0.00022,2]
[333471284,1722163877436,-11442.18085784,0.00022,2]
[333471285,1722163877446,-163.62461199,0.00022,2]
[333471286,1722163877456,-334.3372533,0.00022,2]
[333471287,1722163877465,-272.45563448,0.00022,2]
[333471288,1722163877475,-3381.19283819,0.00022002,2]
[333471289,1722163877486,-3908.10423347,0.00022005,2]
[333471290,1722163877495,-4971.37918027,0.00022022,2]
[333471291,1722163877506,-251.7196586,0.00022028,2]
[333471292,1722163877516,-2288.98425793,0.00022034,2]
[333471293,1722163877525,-2288.98425793,0.00022054,2]
[333471294,1722163877535,-2288.98425793,0.00022072,2]
[333471295,1722163877545,-4971.37918027,0.00022083,2]
[333471296,1722163877555,-3908.10423347,0.00022102,2]
[333471297,1722163877564,-4971.37918027,0.00022105,2]
[333471298,1722163877574,-151.37167896,0.00022153,2]
[333471299,1722163877583,-3044.76746098,0.0002217,2]
[333471300,1722163877593,-251.7196586,0.00022191,2]
[333471301,1722163877603,-158.70242337,0.00022198,2]
[333471302,1722163877612,-251.7196586,0.00022207,2]
[333471303,1722163877622,-153.0,0.00022208,2]
[333471304,1722163877631,-545.7615222,0.00022208,2]
[333471305,1722163877641,-306.0,0.00022208,2]
[333471306,1722163877651,-587.9520205,0.00022208,2]
[333471307,1722163877661,-206.7964656,0.00022208,2]
[333471308,1722163877671,-153.0,0.00022208,2]
[333471309,1722163877681,-206.7964656,0.00022208,2]
[333471310,1722163877691,-153.0,0.00022208,2]
[333471311,1722163877701,-206.7964656,0.00022208,2]
[333471312,1722163877710,-251.7196586,0.00022237,2]
[333471313,1722163877720,-151.37167896,0.00022243,2]
[333471314,1722163877729,-151.37167896,0.00022265,2]
[333471315,1722163877739,-158.70242337,0.00022276,2]
[333471316,1722163877749,-158.70242337,0.00022322,2]
[333471317,1722163877758,-158.70242337,0.00022388,2]
[333471318,1722163877768,-158.70242337,0.00022394,2]
[333471319,1722163877778,-3381.19283819,0.00022415,2]
[333471320,1722163877790,-4971.37918027,0.00022424,2]
[333471321,1722163877812,-2288.98425793,0.00022435,2]
[333471322,1722163877828,-4971.37918027,0.00022453,2]
[333471323,1722163877847,-3908.10423347,0.00022467,2]
[333471324,1722163877866,-7611.0,0.000225,10]
[333471325,1722163877882,-251.7196586,0.00022515,2]
[333471326,1722163877900,-3908.10423347,0.00022517,2]
[333471327,1722163877914,-2288.98425793,0.00022535,2]
[333471328,1722163877932,-151.37167896,0.00022586,2]
[333471329,1722163877950,-251.7196586,0.00022597,2]
[333471330,1722163877969,-251.7196586,0.00022652,2]
[333471331,1722163877982,-154.28369464,0.00022655,2]
[333471332,1722163878000,-151.37167896,0.00022659,2]
[333471333,1722163878014,-3908.10423347,0.00022696,2]
[333471334,1722163878032,-3908.10423347,0.00022698,2]
[333471335,1722163878047,-855.9,0.000227,31]
[333471336,1722163878062,-855.9,0.000227,31]
[333471337,1722163878076,-855.9,0.000227,31]
[333471338,1722163878092,-855.9,0.000227,31]
[333471339,1722163878106,-855.9,0.000227,31]
[333471340,1722163878121,-855.9,0.000227,31]
[333471341,1722163878136,-855.9,0.000227,31]
[333471342,1722163878151,-855.9,0.000227,31]
[333471343,1722163878165,-855.9,0.000227,31]
[333471344,1722163878181,-855.9,0.000227,31]
[333471345,1722163878197,-855.9,0.000227,31]
[333471346,1722163878213,-855.9,0.000227,31]
[333471347,1722163878228,-855.9,0.000227,31]
[333471348,1722163878243,-855.9,0.000227,31]
[333471349,1722163878258,-855.9,0.000227,31]
[333471350,1722163878274,-855.9,0.000227,31]
[333471351,1722163878289,-855.9,0.000227,31]
[333471352,1722163878304,-855.9,0.000227,31]
[333471353,1722163878319,-855.9,0.000227,31]
[333471354,1722163878334,-855.9,0.000227,31]
[333471355,1722163878351,-4971.37918027,0.00022742,2]
[333471356,1722163878366,-3381.19283819,0.0002275,2]
[333471357,1722163878380,-4971.37918027,0.00022764,2]
[333471358,1722163878396,-3381.19283819,0.00022776,2]
[333471359,1722163878410,-4971.37918027,0.0002278,2]
[333471360,1722163878425,-251.7196586,0.0002279,2]
[333471361,1722163878441,-158.70242337,0.000228,2]
[333471362,1722163878456,-150.0,0.00022801,2]
[333471363,1722163878472,-151.37167896,0.0002286,2]
[333471364,1722163878487,-3381.19283819,0.00022875,2]
[333471365,1722163878502,-3381.19283819,0.00022882,2]
[333471366,1722163878517,-3381.19283819,0.000229,2]
[333471367,1722163878533,-154.28369464,0.00022911,2]
[333471368,1722163878549,-154.28369464,0.00022918,2]
[333471369,1722163878564,-4971.37918027,0.00022927,2]
[333471370,1722163878665,-251.7196586,0.00022948,2]
[333471371,1722163878676,-3381.19283819,0.00022956,2]
[333471372,1722163878687,-4971.37918027,0.00022957,2]
[333471373,1722163878697,-154.28369464,0.00022961,2]
[333471374,1722163878707,-3908.10423347,0.0002297,2]
[333471375,1722163878717,-4971.37918027,0.0002298,2]
[333471376,1722163878727,-2288.98425793,0.00022981,2]
[333471377,1722163878737,-154.28369464,0.00022984,2]
[333471378,1722163878747,-1000.34609504,0.00023,2]
[333471379,1722163878757,-238.96471913,0.00023,2]
[333471380,1722163878766,-11371.56225682,0.00023,2]
[333471381,1722163878776,-350.0,0.00023,3]
[333471382,1722163878785,-26220.540218,0.00023,15]
[333471383,1722163878795,-3908.10423347,0.00023009,2]
[333471384,1722163878804,-2288.98425793,0.00023029,2]
[333471385,1722163878814,-206.7964656,0.00023029,2]
[333471386,1722163878824,-206.7964656,0.00023029,2]
[333471387,1722163878833,-206.382064,0.00023029,2]
[333471388,1722163878843,-206.7964656,0.00023029,2]
[333471389,1722163878853,-3908.10423347,0.00023041,2]
[333471390,1722163878863,-151.37167896,0.00023044,2]
[333471391,1722163878872,-4971.37918027,0.00023079,2]
[333471392,1722163878882,-3908.10423347,0.00023084,2]
[333471393,1722163878892,-3381.19283819,0.00023128,2]
[333471394,1722163878902,-154.28369464,0.00023144,2]
[333471395,1722163878912,-154.28369464,0.00023167,2]
[333471396,1722163878922,-158.70242337,0.0002317,2]
[333471397,1722163878932,-154.28369464,0.00023187,2]
[333471398,1722163878942,-3908.10423347,0.000232,2]
[333471399,1722163878952,-4971.37918027,0.00023204,2]
[333471400,1722163878961,-151.37167896,0.00023217,2]
[333471401,1722163878971,-4971.37918027,0.00023237,2]
[333471402,1722163878981,-1895.74426501,0.00023257,2]
[333471403,1722163878991,-158.70242337,0.00023264,2]
[333471404,1722163879001,-2288.98425793,0.00023265,2]
[333471405,1722163879011,-4971.37918027,0.00023267,2]
[333471406,1722163879021,-2288.98425793,0.00023291,2]
[333471407,1722163879031,-151.37167896,0.000233,2]
[333471408,1722163879041,-2288.98425793,0.00023309,2]
[333471409,1722163879052,-4971.37918027,0.00023309,2]
[333471410,1722163879063,-151.37167896,0.00023321,2]
[333471411,1722163879074,-151.37167896,0.00023324,2]
[333471412,1722163879085,-3381.19283819,0.00023333,2]
[333471413,1722163879095,-151.37167896,0.00023338,2]
[333471414,1722163879106,-3381.19283819,0.00023341,2]
[333471415,1722163879117,-500.0,0.00023349,2]
[333471416,1722163879127,-500.0,0.00023349,2]
[333471417,1722163879137,-500.0,0.00023349,2]
[333471418,1722163879147,-492.07708961,0.00023349,2]
[333471419,1722163879158,-166.99851202,0.0002335,2]
[333471420,1722163879168,-154.28369464,0.00023352,2]
[333471421,1722163879178,-4971.37918027,0.00023362,2]
[333471422,1722163879188,-3381.19283819,0.00023372,2]
[333471423,1722163879201,-1893.50654929,0.00023373,2]
[333471424,1722163879212,-4971.37918027,0.0002338,2]
[333471425,1722163879221,-158.70242337,0.00023382,2]
[333471426,1722163879232,-2288.98425793,0.00023386,2]
[333471427,1722163879243,-2288.98425793,0.00023405,2]
[333471428,1722163879253,-3908.10423347,0.00023406,2]
[333471429,1722163879263,-3381.19283819,0.00023407,2]
[333471430,1722163879274,-3381.19283819,0.00023467,2]
[333471431,1722163879286,-158.70242337,0.00023482,2]
[333471432,1722163879296,-151.37167896,0.000235,2]
[333471433,1722163879306,-3381.19283819,0.00023531,2]
[333471434,1722163879317,-3381.19283819,0.00023543,2]
[333471435,1722163879326,-3381.19283819,0.00023544,2]
[333471436,1722163879336,-154.28369464,0.0002357,2]
[333471437,1722163879346,-158.70242337,0.00023586,2]
[333471438,1722163879356,-152.61249675,0.000236,2]
[333471439,1722163879366,-251.7196586,0.00023632,2]
[333471440,1722163879376,-3381.19283819,0.00023649,2]
[333471441,1722163879386,-154.28369464,0.00023651,2]
[333471442,1722163879395,-397.74,0.00023673,2]
[333471443,1722163879405,-4971.37918027,0.00023673,2]
[333471444,1722163879415,-2288.98425793,0.00023695,2]
[333471445,1722163879424,-3381.19283819,0.00023695,2]
[333471446,1722163879434,-3381.19283819,0.00023699,2]
[333471447,1722163879444,-2288.98425793,0.00023708,2]
[333471448,1722163879454,-2288.98425793,0.00023738,2]
[333471449,1722163879464,-151.37167896,0.00023755,2]
[333471450,1722163879474,-151.37167896,0.00023758,2]
[333471451,1722163879484,-151.37167896,0.00023765,2]
[333471452,1722163879495,-3381.19283819,0.00023769,2]
[333471453,1722163879506,-619.99999999,0.00023782,2]
[333471454,1722163879516,-3908.10423347,0.00023783,2]
[333471455,1722163879526,-4971.37918027,0.00023784,2]
[333471456,1722163879536,-251.7196586,0.00023838,2]
[333471457,1722163879546,-160.0,0.00023849,2]
[333471458,1722163879555,-198327.53871535,0.0002385,2]
[333471459,1722163879565,-96205.46128465,0.0002385,2]
[333471460,1722163879574,-4971.37918027,0.00023873,2]
[333471461,1722163879584,-2288.98425793,0.00023883,2]
[333471462,1722163879594,-151.37167896,0.00023883,2]
[333471463,1722163879605,-17449.62776973,0.000239,2]
[333471464,1722163879615,-4971.37918027,0.00023906,2]
[333471465,1722163879625,-3381.19283819,0.00023915,2]
[333471466,1722163879636,-3908.10423347,0.00023962,2]
[333471467,1722163879646,-502.8,0.00024,2]
[333471468,1722163879655,-263.83449355,0.00024,30]
[333471469,1722163879665,-150.0,0.00024,10]
[333471470,1722163879675,-11257.26812075,0.00024,30]
[333471471,1722163879684,-8575.20827265,0.00024,60]
[333471472,1722163879694,-3201.28769075,0.00024,30]
[333471473,1722163879704,-2288.98425793,0.00024026,2]
[333471474,1722163879714,-158.70242337,0.00024026,2]
[333471475,1722163879724,-2288.98425793,0.0002404,2]
[333471476,1722163879734,-2288.98425793,0.00024074,2]
[333471477,1722163879743,-4971.37918027,0.00024075,2]
[333471478,1722163879752,-2288.98425793,0.00024112,2]
[333471479,1722163879762,-154.28369464,0.00024115,2]
[333471480,1722163879771,-251.7196586,0.00024127,2]
[333471481,1722163879782,-151.37167896,0.00024132,2]
[333471482,1722163879791,-3908.10423347,0.00024155,2]
[333471483,1722163879800,-2288.98425793,0.00024178,2]
[333471484,1722163879809,-2288.98425793,0.00024186,2]
[333471485,1722163879819,-3908.10423347,0.00024217,2]
[333471486,1722163879828,-2288.98425793,0.00024234,2]
[333471487,1722163879838,-3381.19283819,0.00024249,2]
[333471488,1722163879848,-154.28369464,0.0002425,2]
[333471489,1722163879858,-3381.19283819,0.0002426,2]
[333471490,1722163879867,-251.7196586,0.00024268,2]
[333471491,1722163879877,-151.37167896,0.00024278,2]
[333471492,1722163879887,-3908.10423347,0.00024314,2]
[333471493,1722163879897,-150.0,0.00024321,2]
[333471494,1722163879906,-2288.98425793,0.00024325,2]
[333471495,1722163879916,-2288.98425793,0.00024345,2]
[333471496,1722163879926,-3381.19283819,0.0002436,2]
[333471497,1722163879936,-154.28369464,0.00024373,2]
[333471498,1722163879946,-154.28369464,0.0002438,2]
[333471499,1722163879956,-4971.37918027,0.00024408,2]
[333471500,1722163879965,-251.7196586,0.00024415,2]
[333471501,1722163879975,-3381.19283819,0.00024435,2]
[333471502,1722163879985,-251.7196586,0.00024435,2]
[333471503,1722163879995,-151.37167896,0.00024459,2]
[333471504,1722163880005,-154.28369464,0.00024493,2]
[333471505,1722163880015,-3908.10423347,0.00024503,2]
[333471506,1722163880024,-154.28369464,0.00024524,2]
[333471507,1722163880035,-3908.10423347,0.00024533,2]
[333471508,1722163880045,-151.37167896,0.00024543,2]
[333471509,1722163880055,-3908.10423347,0.00024568,2]
[333471510,1722163880064,-251.7196586,0.0002458,2]
[333471511,1722163880074,-3381.19283819,0.00024592,2]
[333471512,1722163880084,-4971.37918027,0.00024605,2]
[333471513,1722163880093,-251.7196586,0.00024644,2]
[333471514,1722163880103,-500.0,0.00024658,2]
[333471515,1722163880112,-380.0,0.00024658,2]
[333471516,1722163880122,-200.0,0.00024658,2]
[333471517,1722163880131,-200.0,0.00024658,15]
[333471518,1722163880140,-158.70242337,0.00024658,2]
[333471519,1722163880150,-3381.19283819,0.00024695,2]
[333471520,1722163880160,-855.9,0.000247,31]
[333471521,1722163880170,-855.9,0.000247,31]
[333471522,1722163880179,-855.9,0.000247,31]
[333471523,1722163880189,-855.9,0.000247,31]
[333471524,1722163880201,-855.9,0.000247,31]
[333471525,1722163880211,-855.9,0.000247,31]
[333471526,1722163880220,-855.9,0.000247,31]
[333471527,1722163880230,-855.9,0.000247,31]
[333471528,1722163880240,-855.9,0.000247,31]
[333471529,1722163880249,-855.9,0.000247,31]
[333471530,1722163880259,-855.9,0.000247,31]
[333471531,1722163880268,-855.9,0.000247,31]
[333471532,1722163880278,-855.9,0.000247,31]
[333471533,1722163880287,-855.9,0.000247,31]
[333471534,1722163880298,-855.9,0.000247,31]
[333471535,1722163880307,-855.9,0.000247,31]
[333471536,1722163880316,-855.9,0.000247,31]
[333471537,1722163880326,-855.9,0.000247,31]
[333471538,1722163880335,-855.9,0.000247,31]
[333471539,1722163880344,-855.9,0.000247,31]
[333471540,1722163880354,-151.37167896,0.00024706,2]
[333471541,1722163880363,-151.37167896,0.00024714,2]
[333471542,1722163880372,-251.7196586,0.00024726,2]
[333471543,1722163880382,-151.37167896,0.00024745,2]
[333471544,1722163880391,-251.71965882,0.00024757,2]
[333471545,1722163880401,-3381.19283827,0.0002476,2]
[333471546,1722163880411,-3908.10423347,0.00024768,2]
[333471547,1722163880421,-4971.37918043,0.00024787,2]
[333471548,1722163880430,-151.37167923,0.00024794,2]
[333471549,1722163880440,-154.28369476,0.00024799,2]
[333471550,1722163880450,-2288.98425793,0.00024801,2]
[333471551,1722163880460,-3908.10423365,0.00024803,2]
[333471552,1722163880469,-158.70242347,0.00024807,2]
[333471553,1722163880479,-2288.98425793,0.00024846,2]
[333471554,1722163880488,-2288.98425804,0.0002485,2]
[333471555,1722163880498,-205.0,0.0002488,7]
[333471556,1722163880507,-205.0,0.0002489,7]
[333471557,1722163880516,-1000.5,0.00025,31]
[333471558,1722163880525,-1000.5,0.00025,31]
[333471559,1722163880535,-1000.5,0.00025,31]
[333471560,1722163880544,-500.5,0.00025,31]
[333471561,1722163880553,-150.5,0.00025,31]
[333471562,1722163880563,-163.1,0.00025,31]
[333471563,1722163880572,-194.36221037,0.00025,2]
[333471564,1722163880581,-436.43382137,0.00025,2]
[333471565,1722163880591,-154.90254144,0.00025,2]
[333471566,1722163880600,-154.71377951,0.00025,2]
[333471567,1722163880610,-154.71377951,0.00025,2]
[333471568,1722163880619,-1026.86139561,0.00025,2]
[333471569,1722163880628,-45163.32911264,0.00025,2]
[333471570,1722163880638,-3978.84484725,0.00025,2]
[333471571,1722163880647,-1389.86030269,0.00025,2]
[333471572,1722163880656,-7645.72428318,0.00025,2]
[333471573,1722163880666,-300.0,0.00025,2]
[333471574,1722163880676,-300.0,0.00025,2]
[333471575,1722163880686,-300.0,0.00025,2]
[333471576,1722163880695,-300.0,0.00025,2]
[333471577,1722163880705,-300.0,0.00025,2]
[333471578,1722163880714,-300.0,0.00025,2]
[333471579,1722163880724,-300.0,0.00025,2]
[333471580,1722163880733,-300.0,0.00025,2]
[333471581,1722163880742,-300.0,0.00025,2]
[333471582,1722163880751,-300.0,0.00025,2]
[333471583,1722163880761,-25725.43564681,0.00025,30]
[333471584,1722163880770,-276.5993056,0.00025,2]
[333471585,1722163880780,-976.10148241,0.00025,10]
[333471586,1722163880789,-305.03727326,0.00025,2]
[333471587,1722163880798,-190.94857519,0.00025,2]
[333471588,1722163880807,-123317.19398723,0.00025,120]
[333471589,1722163880817,-225.2,0.00025,2]
[333471590,1722163880827,-211.899999,0.00025,2]
[333471591,1722163880836,-2000.212253,0.0002501,2]
[333471592,1722163880845,-1895.74426501,0.00025189,2]
[333471593,1722163880854,-150.12843214,0.0002523,120]
[333471594,1722163880864,-900.0,0.00025469,3]
[333471595,1722163880873,-133427.74421981,0.000255,2]
[333471596,1722163880883,-711733.72746304,0.000255,2]
[333471597,1722163880892,-147285.27750588,0.000255,2]
[333471598,1722163880902,-118795.71178112,0.000255,2]
[333471599,1722163880911,-131368.54921514,0.000255,2]
[333471600,1722163880920,-14895.909892,0.000255,2]
[333471601,1722163880930,-152.61249675,0.000256,4]
[333471602,1722163880940,-1893.50654929,0.0002591,2]
[333471603,1722163880949,-150.0,0.00026,30]
[333471604,1722163880959,-381.834791,0.00026388,2]
[333471605,1722163880968,-7458.94652043,0.0002649,2]
[333471606,1722163880978,-855.9,0.000266,31]
[333471607,1722163880988,-855.9,0.000266,31]
[333471608,1722163880998,-855.9,0.000266,31]
[333471609,1722163881007,-855.9,0.000266,31]
[333471610,1722163881017,-855.9,0.000266,31]
[333471611,1722163881026,-855.9,0.000266,31]
[333471612,1722163881036,-855.9,0.000266,31]
[333471613,1722163881046,-855.9,0.000266,31]
[333471614,1722163881056,-855.9,0.000266,31]
[333471615,1722163881066,-855.9,0.000266,31]
[333471616,1722163881076,-855.9,0.000266,31]
[333471617,1722163881085,-855.9,0.000266,31]
[333471618,1722163881094,-855.9,0.000266,31]
[333471619,1722163881104,-855.9,0.000266,31]
[333471620,1722163881113,-855.9,0.000266,31]
[333471621,1722163881123,-855.9,0.000266,31]
[333471622,1722163881134,-855.9,0.000266,31]
[333471623,1722163881231,-855.9,0.000266,31]
[333471624,1722163881242,-855.9,0.000266,31]
[333471625,1722163881251,-855.9,0.000266,31]
[333471626,1722163881260,-220.06221848,0.00027,15]
[333471627,1722163881270,-1895.74426501,0.0002712,2]
[333471628,1722163881282,-163.670951,0.00027123,2]
[333471629,1722163881293,-163.670951,0.00027123,8]
[333471630,1722163881303,-163.670951,0.00027123,15]
[333471631,1722163881313,-163.670951,0.00027123,22]
[333471632,1722163881324,-163.670951,0.00027123,29]
[333471633,1722163881334,-163.670951,0.00027123,36]
[333471634,1722163881344,-163.670951,0.00027123,43]
[333471635,1722163881354,-163.670951,0.00027123,50]
[333471636,1722163881364,-163.670951,0.00027123,57]
[333471637,1722163881374,-163.670951,0.00027123,64]
[333471638,1722163881385,-163.670951,0.00027123,71]
[333471639,1722163881396,-163.670951,0.00027123,78]
[333471640,1722163881406,-163.670951,0.00027123,85]
[333471641,1722163881417,-163.670951,0.00027123,92]
[333471642,1722163881428,-163.670951,0.00027123,99]
[333471643,1722163881438,-163.670951,0.00027123,106]
[333471644,1722163881449,-163.670951,0.00027123,113]
[333471645,1722163881458,-163.670951,0.00027123,120]
[333471646,1722163881467,-526.379189,0.00027167,2]
[333471647,1722163881477,-750.0,0.00027167,2]
[333471648,1722163881487,-207.56398297,0.00027397,2]
[333471649,1722163881498,-949.95808865,0.00027397,2]
[333471650,1722163881509,-949.95808865,0.00027397,2]
[333471651,1722163881519,-949.95808865,0.00027397,2]
[333471652,1722163881528,-949.95808865,0.00027397,2]
[333471653,1722163881538,-949.95808865,0.00027397,2]
[333471654,1722163881548,-949.95808865,0.00027397,2]
[333471655,1722163881559,-949.95808865,0.00027397,2]
[333471656,1722163881569,-949.95808865,0.00027397,2]
[333471657,1722163881579,-949.95808865,0.00027397,2]
[333471658,1722163881589,-949.95808865,0.00027397,2]
[333471659,1722163881598,-949.95808865,0.00027397,2]
[333471660,1722163881608,-949.95808865,0.00027397,2]
[333471661,1722163881619,-949.95808865,0.00027397,2]
[333471662,1722163881630,-949.95808865,0.00027397,2]
[333471663,1722163881641,-949.95808865,0.00027397,2]
[333471664,1722163881651,-949.95808865,0.00027397,2]
[333471665,1722163881662,-949.95808865,0.00027397,2]
[333471666,1722163881673,-949.95808865,0.00027397,2]
[333471667,1722163881683,-949.95808865,0.00027397,2]
[333471668,1722163881695,-949.95808865,0.00027397,2]
[333471669,1722163881705,-949.95808865,0.00027397,2]
[333471670,1722163881716,-949.95808865,0.00027397,2]
[333471671,1722163881726,-949.95808865,0.00027397,2]
[333471672,1722163881738,-949.95808865,0.00027397,2]
[333471673,1722163881748,-949.95808865,0.00027397,2]
[333471674,1722163881761,-949.95808865,0.00027397,2]
[333471675,1722163881772,-949.95808865,0.00027397,2]
[333471676,1722163881784,-949.95808865,0.00027397,2]
[333471677,1722163881794,-949.95808865,0.00027397,2]
[333471678,1722163881803,-949.95808865,0.00027397,2]
[333471679,1722163881815,-949.95808865,0.00027397,2]
[333471680,1722163881824,-949.95808865,0.00027397,2]
[333471681,1722163881833,-949.95808865,0.00027397,2]
[333471682,1722163881842,-949.95808865,0.00027397,2]
[333471683,1722163881852,-949.95808865,0.00027397,2]
[333471684,1722163881862,-949.95808865,0.00027397,2]
[333471685,1722163881872,-949.95808865,0.00027397,2]
[333471686,1722163881881,-401.86180256,0.00027397,60]